[Event "*** Titled Tuesday Blitz"]
[Site "Chess.com"]
[Date "2021.03.09"]
[Round "10"]
[White "XDPS"]
[Black "eldur16"]
[Result "0-1"]
[WhiteElo "2702"]
[BlackElo "2581"]
[TimeControl "180+1"]
[EndTime "11:58:34 PST"]
[Termination "eldur16 won on time"]

1. d4 {[%clk 0:03:00.9]} 1... Nf6 {[%clk 0:02:59.8]} 2. Bf4 {[%clk 0:03:01.2]}
2... g6 {[%clk 0:02:59.2]} 3. Nc3 {[%clk 0:03:00.1]} 3... d6 {[%clk 0:02:57.2]}
4. e4 {[%clk 0:02:59.6]} 4... Bg7 {[%clk 0:02:54.1]} 5. Qd2 {[%clk 0:02:59.5]}
5... c6 {[%clk 0:02:53.8]} 6. h4 {[%clk 0:02:58.1]} 6... b5 {[%clk 0:02:51.5]}
7. Bd3 {[%clk 0:02:57.4]} 7... b4 {[%clk 0:02:49.3]} 8. Nce2 {[%clk 0:02:57.3]}
8... a5 {[%clk 0:02:48.9]} 9. Bh6 {[%clk 0:02:52.7]} 9... Bxh6 {[%clk 0:02:46]}
10. Qxh6 {[%clk 0:02:52.7]} 10... Nbd7 {[%clk 0:02:42.1]} 11. Nf3 {[%clk
0:02:51.7]} 11... e5 {[%clk 0:02:41.2]} 12. dxe5 {[%clk 0:02:41.2]} 12... dxe5
{[%clk 0:02:40.1]} 13. Bc4 {[%clk 0:02:41.5]} 13... Ba6 {[%clk 0:02:31]} 14.
Bxf7+ {[%clk 0:00:38.4]} 14... Kxf7 {[%clk 0:02:30.1]} 15. Ng5+ {[%clk
0:00:38.8]} 15... Kg8 {[%clk 0:02:26.4]} 16. h5 {[%clk 0:00:35.3]} 16... Qf8
{[%clk 0:02:21.1]} 17. hxg6 {[%clk 0:00:35.7]} 17... Qxh6 {[%clk 0:02:20.5]} 18.
Rxh6 {[%clk 0:00:36.3]} 18... Kg7 {[%clk 0:02:14.8]} 19. Nf7 {[%clk 0:00:08.5]}
19... Rhf8 {[%clk 0:02:06.5]} 20. Rh4 {[%clk 0:00:08.5]} 20... hxg6 {[%clk
0:02:05.5]} 21. Ng5 {[%clk 0:00:09.1]} 21... Bc4 {[%clk 0:01:58.9]} 22. Ng3
{[%clk 0:00:08]} 22... Rh8 {[%clk 0:01:57.1]} 23. Rxh8 {[%clk 0:00:08.1]} 23...
Rxh8 {[%clk 0:01:55.6]} 24. O-O-O {[%clk 0:00:09]} 24... a4 {[%clk 0:01:45.5]}
25. b3 {[%clk 0:00:09.4]} 25... axb3 {[%clk 0:01:44.8]} 26. axb3 {[%clk
0:00:10.3]} 26... Bg8 {[%clk 0:01:42.2]} 27. Rd6 {[%clk 0:00:10.7]} 27... c5
{[%clk 0:01:40.6]} 28. Rc6 {[%clk 0:00:10.8]} 28... Rh2 {[%clk 0:01:38.7]} 29.
Rc7 {[%clk 0:00:09.5]} 29... Rxg2 {[%clk 0:01:37.4]} 30. Nf3 {[%clk 0:00:07.6]}
30... Rxf2 {[%clk 0:01:33.3]} 31. Nxe5 {[%clk 0:00:07.8]} 31... Be6 {[%clk
0:01:33.1]} 32. Nd3 {[%clk 0:00:07.4]} 32... Rg2 {[%clk 0:01:26.4]} 33. Nf1
{[%clk 0:00:06.6]} 33... Kh6 {[%clk 0:01:20.5]} 34. Ne3 {[%clk 0:00:06.5]} 34...
Rg1+ {[%clk 0:01:16.6]} 35. Kb2 {[%clk 0:00:06.9]} 35... Nxe4 {[%clk 0:01:15.9]}
36. c4 {[%clk 0:00:01.1]} 36... bxc3+ {[%clk 0:01:13.2]} 37. Kc2 {[%clk
0:00:01.6]} 37... Rg3 {[%clk 0:01:09]} 0-1

[Event "*** Titled Tuesday Blitz"]
[Site "Chess.com"]
[Date "2021.03.09"]
[Round "10"]
[White "Artem_Sadovsky"]
[Black "zverr1"]
[Result "1-0"]
[WhiteElo "2576"]
[BlackElo "2446"]
[TimeControl "180+1"]
[EndTime "11:58:34 PST"]
[Termination "Artem_Sadovsky won by resignation"]

1. Nf3 {[%clk 0:02:58.9]} 1... h6 {[%clk 0:02:57.3]} 2. b3 {[%clk 0:02:53.6]}
2... g5 {[%clk 0:02:55]} 3. Bb2 {[%clk 0:02:53.7]} 3... f6 {[%clk 0:02:54.6]} 4.
e4 {[%clk 0:02:50.5]} 4... e5 {[%clk 0:02:53.3]} 5. Nxe5 {[%clk 0:02:31.6]} 5...
fxe5 {[%clk 0:02:53.3]} 6. Qh5+ {[%clk 0:02:31.9]} 6... Ke7 {[%clk 0:02:53.1]}
7. Bxe5 {[%clk 0:02:29.2]} 7... Nf6 {[%clk 0:02:37.1]} 8. Qg6 {[%clk 0:02:29]}
8... Ke6 {[%clk 0:02:28.8]} 9. d4 {[%clk 0:01:50.7]} 9... Be7 {[%clk 0:01:56]}
10. Bc4+ {[%clk 0:01:35.2]} 10... d5 {[%clk 0:01:54.6]} 11. exd5+ {[%clk
0:01:12]} 11... Kd7 {[%clk 0:01:54.7]} 12. O-O {[%clk 0:00:53.9]} 12... Qe8
{[%clk 0:01:48.6]} 13. Qd3 {[%clk 0:00:33.8]} 13... Kd8 {[%clk 0:01:37.5]} 14.
Nc3 {[%clk 0:00:32.7]} 14... a6 {[%clk 0:01:35.6]} 15. Rfe1 {[%clk 0:00:32.6]}
15... Nbd7 {[%clk 0:01:23.9]} 16. a4 {[%clk 0:00:28.3]} 16... Rf8 {[%clk
0:01:19.5]} 17. a5 {[%clk 0:00:26.7]} 17... Nh5 {[%clk 0:01:06.7]} 18. d6 {[%clk
0:00:23]} 18... cxd6 {[%clk 0:00:23.3]} 19. Bxd6 {[%clk 0:00:23.4]} 19... Bxd6
{[%clk 0:00:24.2]} 20. Rxe8+ {[%clk 0:00:22.4]} 20... Rxe8 {[%clk 0:00:25.1]}
21. Qg6 {[%clk 0:00:17.9]} 21... Nf4 {[%clk 0:00:23.6]} 22. Qxd6 {[%clk
0:00:17]} 1-0

[Event "*** Titled Tuesday Blitz"]
[Site "Chess.com"]
[Date "2021.03.09"]
[Round "10"]
[White "KonstantinB_1983"]
[Black "miredenizdogan"]
[Result "1-0"]
[WhiteElo "2470"]
[BlackElo "2252"]
[TimeControl "180+1"]
[EndTime "11:58:34 PST"]
[Termination "KonstantinB_1983 won by resignation"]

1. e4 {[%clk 0:03:00.9]} 1... c5 {[%clk 0:03:00]} 2. Nf3 {[%clk 0:03:00.9]} 2...
d6 {[%clk 0:02:59.6]} 3. c3 {[%clk 0:03:00.1]} 3... Nf6 {[%clk 0:02:57.3]} 4.
Be2 {[%clk 0:02:59.7]} 4... Nc6 {[%clk 0:02:56]} 5. d3 {[%clk 0:02:58.7]} 5...
e5 {[%clk 0:02:56.2]} 6. h3 {[%clk 0:02:58]} 6... h6 {[%clk 0:02:51.5]} 7. O-O
{[%clk 0:02:58]} 7... Be7 {[%clk 0:02:52]} 8. Re1 {[%clk 0:02:56.2]} 8... O-O
{[%clk 0:02:52.4]} 9. Bf1 {[%clk 0:02:56.6]} 9... b5 {[%clk 0:02:52.2]} 10. d4
{[%clk 0:02:56.8]} 10... cxd4 {[%clk 0:02:51.9]} 11. Bxb5 {[%clk 0:02:53.6]}
11... Bb7 {[%clk 0:02:39.9]} 12. cxd4 {[%clk 0:02:50.3]} 12... exd4 {[%clk
0:02:01.2]} 13. Nxd4 {[%clk 0:02:43.5]} 13... Nxd4 {[%clk 0:01:56.7]} 14. Qxd4
{[%clk 0:02:42.2]} 14... Nxe4 {[%clk 0:01:57.4]} 15. Rxe4 {[%clk 0:02:37.6]}
15... Bf6 {[%clk 0:01:58]} 16. Qd3 {[%clk 0:02:28.3]} 16... Bxe4 {[%clk
0:01:55]} 17. Qxe4 {[%clk 0:02:27.4]} 17... Qa5 {[%clk 0:01:55.3]} 18. Na3
{[%clk 0:02:22.5]} 18... d5 {[%clk 0:01:54.1]} 19. Qe2 {[%clk 0:02:08]} 19... a6
{[%clk 0:01:47.9]} 20. Bd3 {[%clk 0:01:42.3]} 20... Rfe8 {[%clk 0:01:46.4]} 21.
Qf3 {[%clk 0:01:36.1]} 21... Re1+ {[%clk 0:01:29.7]} 22. Kh2 {[%clk 0:01:34.2]}
22... Be5+ {[%clk 0:01:14.3]} 23. g3 {[%clk 0:01:32.7]} 23... Qc7 {[%clk
0:01:03.4]} 24. Nc2 {[%clk 0:01:27.3]} 24... Bxg3+ {[%clk 0:00:43.9]} 25. Qxg3
{[%clk 0:01:24.3]} 25... Qxg3+ {[%clk 0:00:42.9]} 26. Kxg3 {[%clk 0:01:22.1]}
26... Rd1 {[%clk 0:00:43.3]} 27. Be2 {[%clk 0:01:18.3]} 27... Rg1+ {[%clk
0:00:40.5]} 28. Kh2 {[%clk 0:01:17.2]} 28... Rg6 {[%clk 0:00:37.6]} 29. Be3
{[%clk 0:01:14.9]} 29... Re6 {[%clk 0:00:35.6]} 30. Bf3 {[%clk 0:01:13.4]} 30...
Rc8 {[%clk 0:00:30.9]} 31. Nd4 {[%clk 0:01:12.1]} 31... Re5 {[%clk 0:00:30.4]}
32. Bf4 {[%clk 0:01:09.6]} 32... Ree8 {[%clk 0:00:21.2]} 33. Rd1 {[%clk
0:01:08.2]} 33... Rc4 {[%clk 0:00:19.9]} 34. Bxd5 {[%clk 0:01:04.6]} 34... Rb4
{[%clk 0:00:19.2]} 35. Bb3 {[%clk 0:01:01.8]} 35... Rd8 {[%clk 0:00:18.6]} 36.
Be3 {[%clk 0:01:01]} 36... Rd6 {[%clk 0:00:17.9]} 37. Kg3 {[%clk 0:00:52.4]} 1-0

[Event "*** Titled Tuesday Blitz"]
[Site "Chess.com"]
[Date "2021.03.09"]
[Round "10"]
[White "IMVoja"]
[Black "BegmuratovKh2010"]
[Result "0-1"]
[WhiteElo "2410"]
[BlackElo "2547"]
[TimeControl "180+1"]
[EndTime "11:58:35 PST"]
[Termination "BegmuratovKh2010 won on time"]

1. e4 {[%clk 0:02:31.1]} 1... c5 {[%clk 0:02:59.8]} 2. Nf3 {[%clk 0:02:30]} 2...
d6 {[%clk 0:03:00.1]} 3. d4 {[%clk 0:02:29.4]} 3... cxd4 {[%clk 0:03:01]} 4.
Nxd4 {[%clk 0:02:29.5]} 4... Nf6 {[%clk 0:03:01.5]} 5. Nc3 {[%clk 0:02:29.1]}
5... g6 {[%clk 0:02:59.4]} 6. h3 {[%clk 0:02:28.7]} 6... Bg7 {[%clk 0:02:59]} 7.
Be3 {[%clk 0:02:26.3]} 7... O-O {[%clk 0:02:59]} 8. g3 {[%clk 0:02:26.3]} 8...
a6 {[%clk 0:02:54.2]} 9. Bg2 {[%clk 0:02:24.6]} 9... Nbd7 {[%clk 0:02:51.9]} 10.
O-O {[%clk 0:02:24]} 10... Qc7 {[%clk 0:02:44]} 11. a4 {[%clk 0:02:21.9]} 11...
Rb8 {[%clk 0:02:41.1]} 12. a5 {[%clk 0:02:20.5]} 12... Ne5 {[%clk 0:02:39.4]}
13. Re1 {[%clk 0:02:15]} 13... Nc4 {[%clk 0:02:36.8]} 14. Bc1 {[%clk 0:02:14.9]}
14... Nxa5 {[%clk 0:02:28.6]} 15. Nd5 {[%clk 0:02:04.5]} 15... Nxd5 {[%clk
0:02:26]} 16. exd5 {[%clk 0:02:05.4]} 16... Nc4 {[%clk 0:02:25.8]} 17. c3 {[%clk
0:01:54.1]} 17... Re8 {[%clk 0:02:16.4]} 18. b3 {[%clk 0:01:43.7]} 18... Ne5
{[%clk 0:02:08.5]} 19. c4 {[%clk 0:01:42.7]} 19... Nd7 {[%clk 0:01:56]} 20. Rb1
{[%clk 0:01:35.9]} 20... Nc5 {[%clk 0:01:49.3]} 21. g4 {[%clk 0:01:32.3]} 21...
Bd7 {[%clk 0:01:45.2]} 22. Bg5 {[%clk 0:01:25.8]} 22... b5 {[%clk 0:01:21.9]}
23. Bxe7 {[%clk 0:01:13.7]} 23... bxc4 {[%clk 0:01:13]} 24. b4 {[%clk 0:00:27]}
24... Nd3 {[%clk 0:01:06]} 25. Re4 {[%clk 0:00:08.7]} 25... Bxd4 {[%clk
0:01:04.2]} 26. Rxd4 {[%clk 0:00:07.6]} 26... Rxe7 {[%clk 0:01:03.9]} 27. Bf1
{[%clk 0:00:08.5]} 27... Ne5 {[%clk 0:01:02.3]} 28. f4 {[%clk 0:00:06.3]} 28...
Qb6 {[%clk 0:01:01.7]} 29. Kg2 {[%clk 0:00:03.7]} 29... Nd3 {[%clk 0:01:01.1]}
30. Rxc4 {[%clk 0:00:02.7]} 30... Qf2+ {[%clk 0:01:01.2]} 31. Kh1 {[%clk
0:00:02.1]} 31... Ne1 {[%clk 0:00:57.8]} 0-1

[Event "*** Titled Tuesday Blitz"]
[Site "Chess.com"]
[Date "2021.03.09"]
[Round "10"]
[White "Cambek64"]
[Black "Milchone1"]
[Result "1-0"]
[WhiteElo "2432"]
[BlackElo "2525"]
[TimeControl "180+1"]
[EndTime "11:58:36 PST"]
[Termination "Cambek64 won by resignation"]

1. e4 {[%clk 0:02:55]} 1... e5 {[%clk 0:02:59.7]} 2. Nf3 {[%clk 0:02:53.4]} 2...
Nc6 {[%clk 0:03:00.1]} 3. Bc4 {[%clk 0:02:51.6]} 3... Nf6 {[%clk 0:03:00]} 4.
Ng5 {[%clk 0:02:50.5]} 4... d5 {[%clk 0:03:00]} 5. exd5 {[%clk 0:02:48.7]} 5...
Na5 {[%clk 0:03:00.4]} 6. Bb5+ {[%clk 0:02:48.6]} 6... c6 {[%clk 0:03:00.7]} 7.
dxc6 {[%clk 0:02:48.9]} 7... bxc6 {[%clk 0:03:01.6]} 8. Bd3 {[%clk 0:02:48.6]}
8... h6 {[%clk 0:03:01.4]} 9. Ne4 {[%clk 0:02:47.1]} 9... Nd5 {[%clk 0:03:01.9]}
10. O-O {[%clk 0:02:46.8]} 10... Be7 {[%clk 0:03:01.8]} 11. Ng3 {[%clk
0:02:45.6]} 11... Nf4 {[%clk 0:03:00.4]} 12. Bf5 {[%clk 0:02:41.4]} 12... Bb7
{[%clk 0:02:54.5]} 13. d4 {[%clk 0:02:41.6]} 13... g6 {[%clk 0:02:43.9]} 14. Be4
{[%clk 0:02:27]} 14... f5 {[%clk 0:02:40.4]} 15. dxe5 {[%clk 0:02:25.8]} 15...
Nd5 {[%clk 0:02:36.7]} 16. Bxd5 {[%clk 0:02:21.1]} 16... cxd5 {[%clk 0:02:37.6]}
17. f4 {[%clk 0:02:16.8]} 17... O-O {[%clk 0:02:36.9]} 18. Be3 {[%clk
0:02:13.9]} 18... Nc4 {[%clk 0:02:34]} 19. Bd4 {[%clk 0:02:13.9]} 19... Rc8
{[%clk 0:02:29.1]} 20. Nd2 {[%clk 0:02:12.8]} 20... Ba6 {[%clk 0:02:15.7]} 21.
Nxc4 {[%clk 0:02:02]} 21... Rxc4 {[%clk 0:02:11.9]} 22. Rf2 {[%clk 0:02:00]}
22... Qc7 {[%clk 0:02:09.6]} 23. c3 {[%clk 0:01:59.6]} 23... Rb8 {[%clk
0:02:08.4]} 24. Qf3 {[%clk 0:01:54.7]} 24... Qc6 {[%clk 0:01:52.9]} 25. Rd1
{[%clk 0:01:54.4]} 25... Rb7 {[%clk 0:01:51.9]} 26. Nf1 {[%clk 0:01:53.2]} 26...
Ra4 {[%clk 0:01:49.5]} 27. Ne3 {[%clk 0:01:36.9]} 27... Rxa2 {[%clk 0:01:47.5]}
28. Nxd5 {[%clk 0:01:35.9]} 28... Qe6 {[%clk 0:01:38.8]} 29. b4 {[%clk
0:01:27.4]} 29... Rxf2 {[%clk 0:01:36.3]} 30. Bxf2 {[%clk 0:01:27.6]} 30... Bf8
{[%clk 0:01:29.1]} 31. h3 {[%clk 0:01:11.5]} 31... Kf7 {[%clk 0:01:28.6]} 32.
Nf6 {[%clk 0:01:07.6]} 32... Rc7 {[%clk 0:01:27]} 33. Bc5 {[%clk 0:01:06.5]}
33... Bb7 {[%clk 0:01:15.2]} 34. Qf2 {[%clk 0:00:45.5]} 34... Bxc5 {[%clk
0:01:13.2]} 35. bxc5 {[%clk 0:00:44.9]} 35... Qc6 {[%clk 0:01:12.4]} 36. Rd6
{[%clk 0:00:43.2]} 36... Qxc5 {[%clk 0:01:12.3]} 37. Qxc5 {[%clk 0:00:42.3]}
37... Rxc5 {[%clk 0:01:13.2]} 38. Rd7+ {[%clk 0:00:42.4]} 38... Ke6 {[%clk
0:01:14.1]} 39. Rxb7 {[%clk 0:00:42.5]} 39... Rxc3 {[%clk 0:01:15]} 40. Rxa7
{[%clk 0:00:41.8]} 40... g5 {[%clk 0:01:14.7]} 41. Ra6+ {[%clk 0:00:39.7]} 41...
Ke7 {[%clk 0:01:14.6]} 42. fxg5 {[%clk 0:00:37.3]} 42... Rc1+ {[%clk 0:01:14.1]}
43. Kh2 {[%clk 0:00:36.4]} 43... hxg5 {[%clk 0:01:15]} 44. Nd5+ {[%clk
0:00:35.1]} 44... Kd7 {[%clk 0:01:14.2]} 45. e6+ {[%clk 0:00:35.3]} 45... Kd8
{[%clk 0:01:10.6]} 46. Ra8+ {[%clk 0:00:35.1]} 1-0

[Event "*** Titled Tuesday Blitz"]
[Site "Chess.com"]
[Date "2021.03.09"]
[Round "10"]
[White "HackingKid98"]
[Black "Fortitudine"]
[Result "1-0"]
[WhiteElo "2452"]
[BlackElo "2294"]
[TimeControl "180+1"]
[EndTime "11:58:38 PST"]
[Termination "HackingKid98 won by resignation"]

1. c4 {[%clk 0:03:00.9]} 1... Nf6 {[%clk 0:02:59.2]} 2. g3 {[%clk 0:03:00.2]}
2... c5 {[%clk 0:02:59.5]} 3. Bg2 {[%clk 0:03:00.3]} 3... g6 {[%clk 0:03:00.2]}
4. Nf3 {[%clk 0:03:00.4]} 4... Bg7 {[%clk 0:03:00.8]} 5. Nc3 {[%clk 0:03:01.3]}
5... O-O {[%clk 0:03:01.2]} 6. O-O {[%clk 0:03:01.4]} 6... d6 {[%clk 0:03:00.3]}
7. d4 {[%clk 0:03:01.4]} 7... cxd4 {[%clk 0:03:01.2]} 8. Nxd4 {[%clk 0:03:02.2]}
8... Nc6 {[%clk 0:03:02.1]} 9. Nb3 {[%clk 0:03:01]} 9... Be6 {[%clk 0:02:59.1]}
10. c5 {[%clk 0:03:01.1]} 10... Bxb3 {[%clk 0:02:46.8]} 11. Qxb3 {[%clk
0:02:59.1]} 11... Na5 {[%clk 0:02:44.8]} 12. Qa3 {[%clk 0:02:55.7]} 12... dxc5
{[%clk 0:02:42.2]} 13. Qxc5 {[%clk 0:02:56.6]} 13... b6 {[%clk 0:02:34.2]} 14.
Qb5 {[%clk 0:02:33.2]} 14... Rc8 {[%clk 0:02:29.7]} 15. Rd1 {[%clk 0:02:32.8]}
15... Qc7 {[%clk 0:02:02.8]} 16. Bf4 {[%clk 0:02:31.6]} 16... Qc4 {[%clk
0:02:02.1]} 17. Rac1 {[%clk 0:02:23.5]} 17... Nh5 {[%clk 0:01:15.4]} 18. b3
{[%clk 0:01:57.6]} 18... Qxb5 {[%clk 0:00:56.7]} 19. Nxb5 {[%clk 0:01:58.5]}
19... Nxf4 {[%clk 0:00:56.9]} 20. gxf4 {[%clk 0:01:58.7]} 20... Bb2 {[%clk
0:00:39.1]} 21. Rb1 {[%clk 0:01:19.4]} 21... Bf6 {[%clk 0:00:25.3]} 22. Rdc1
{[%clk 0:00:58.6]} 22... Rxc1+ {[%clk 0:00:20]} 23. Rxc1 {[%clk 0:00:59.5]}
23... Rd8 {[%clk 0:00:20.1]} 24. b4 {[%clk 0:00:49.8]} 24... a6 {[%clk
0:00:19.6]} 25. bxa5 {[%clk 0:00:37.4]} 25... axb5 {[%clk 0:00:19.8]} 26. a6
{[%clk 0:00:38.3]} 1-0

[Event "*** Titled Tuesday Blitz"]
[Site "Chess.com"]
[Date "2021.03.09"]
[Round "10"]
[White "Vaathi_Coming"]
[Black "AlexPapasimakopoulos"]
[Result "1-0"]
[WhiteElo "2806"]
[BlackElo "2608"]
[TimeControl "180+1"]
[EndTime "11:58:40 PST"]
[Termination "Vaathi_Coming won by checkmate"]

1. Nf3 {[%clk 0:03:00.9]} 1... f5 {[%clk 0:02:54.5]} 2. h3 {[%clk 0:02:59.2]}
2... d6 {[%clk 0:02:48.9]} 3. g4 {[%clk 0:02:59.7]} 3... fxg4 {[%clk 0:02:48.4]}
4. hxg4 {[%clk 0:03:00.6]} 4... Bxg4 {[%clk 0:02:48.8]} 5. d4 {[%clk 0:02:56]}
5... Bxf3 {[%clk 0:02:35.6]} 6. exf3 {[%clk 0:02:56.9]} 6... e5 {[%clk
0:02:36.1]} 7. Bd3 {[%clk 0:02:43.4]} 7... Qf6 {[%clk 0:02:31]} 8. Nc3 {[%clk
0:02:38.1]} 8... Nc6 {[%clk 0:02:17.3]} 9. Ne4 {[%clk 0:02:09.9]} 9... Qe7
{[%clk 0:02:05.3]} 10. d5 {[%clk 0:02:06.5]} 10... Nd8 {[%clk 0:01:58.6]} 11.
Bg5 {[%clk 0:02:03.8]} 11... Nf6 {[%clk 0:01:58.3]} 12. f4 {[%clk 0:01:26.9]}
12... Nf7 {[%clk 0:01:55.1]} 13. Bxf6 {[%clk 0:01:26.7]} 13... gxf6 {[%clk
0:01:53.4]} 14. Bb5+ {[%clk 0:01:26.9]} 14... Kd8 {[%clk 0:01:49.2]} 15. Qh5
{[%clk 0:01:24.2]} 15... a6 {[%clk 0:01:38.8]} 16. Bd3 {[%clk 0:01:20.3]} 16...
Bh6 {[%clk 0:01:28.7]} 17. f5 {[%clk 0:01:12.8]} 17... Kc8 {[%clk 0:01:19.8]}
18. Ke2 {[%clk 0:01:05.8]} 18... Kb8 {[%clk 0:01:19.8]} 19. Qf3 {[%clk
0:01:01.4]} 19... Ka7 {[%clk 0:01:18.5]} 20. Rxh6 {[%clk 0:01:01]} 20... Nxh6
{[%clk 0:01:15.2]} 21. Qe3+ {[%clk 0:01:01.4]} 21... b6 {[%clk 0:01:15.8]} 22.
Qxh6 {[%clk 0:01:01.2]} 22... Raf8 {[%clk 0:01:10.3]} 23. a4 {[%clk 0:00:59.6]}
23... Qf7 {[%clk 0:01:04.1]} 24. a5 {[%clk 0:00:56.2]} 24... b5 {[%clk
0:00:59.1]} 25. c4 {[%clk 0:00:53.3]} 25... Rb8 {[%clk 0:00:55.6]} 26. b3 {[%clk
0:00:49.9]} 26... bxc4 {[%clk 0:00:51]} 27. Bxc4 {[%clk 0:00:50.8]} 27... Qf8
{[%clk 0:00:37.6]} 28. Qe3+ {[%clk 0:00:42.1]} 28... Kb7 {[%clk 0:00:37.6]} 29.
Rc1 {[%clk 0:00:40.1]} 29... Ra8 {[%clk 0:00:35.7]} 30. Bd3 {[%clk 0:00:37]}
30... h5 {[%clk 0:00:29.2]} 31. Rc6 {[%clk 0:00:36.3]} 31... h4 {[%clk
0:00:22.7]} 32. Nxd6+ {[%clk 0:00:35.9]} 32... Kb8 {[%clk 0:00:19.8]} 33. Rb6+
{[%clk 0:00:34.6]} 33... cxb6 {[%clk 0:00:19.6]} 34. Qxb6# {[%clk 0:00:35.5]}
1-0

[Event "*** Titled Tuesday Blitz"]
[Site "Chess.com"]
[Date "2021.03.09"]
[Round "10"]
[White "zacachess"]
[Black "anon102030"]
[Result "0-1"]
[WhiteElo "2483"]
[BlackElo "2677"]
[TimeControl "180+1"]
[EndTime "11:58:40 PST"]
[Termination "anon102030 won by resignation"]

1. e4 {[%clk 0:02:31.8]} 1... e5 {[%clk 0:02:59.3]} 2. Nf3 {[%clk 0:02:30.5]}
2... Nc6 {[%clk 0:02:59.6]} 3. d4 {[%clk 0:02:31.1]} 3... exd4 {[%clk
0:02:58.8]} 4. Nxd4 {[%clk 0:02:32]} 4... Bc5 {[%clk 0:02:56.3]} 5. Be3 {[%clk
0:02:31.7]} 5... Qf6 {[%clk 0:02:56]} 6. c3 {[%clk 0:02:32.1]} 6... Nge7 {[%clk
0:02:54.8]} 7. g3 {[%clk 0:02:32.4]} 7... O-O {[%clk 0:02:52.9]} 8. Bg2 {[%clk
0:02:32.7]} 8... d6 {[%clk 0:02:50]} 9. O-O {[%clk 0:02:31.9]} 9... Ne5 {[%clk
0:02:48.5]} 10. h3 {[%clk 0:02:31.4]} 10... Nc4 {[%clk 0:02:46.9]} 11. Bc1
{[%clk 0:02:31.7]} 11... Nc6 {[%clk 0:02:42]} 12. Ne2 {[%clk 0:02:24.5]} 12...
Re8 {[%clk 0:02:34.9]} 13. Nf4 {[%clk 0:02:16.6]} 13... a5 {[%clk 0:02:33.9]}
14. Nd5 {[%clk 0:02:08.1]} 14... Qd8 {[%clk 0:02:33.5]} 15. b3 {[%clk
0:02:01.6]} 15... Nb6 {[%clk 0:02:32.9]} 16. Ba3 {[%clk 0:01:39.5]} 16... Nxd5
{[%clk 0:02:22.1]} 17. exd5 {[%clk 0:01:36.6]} 17... Ne5 {[%clk 0:02:20]} 18.
Bxc5 {[%clk 0:01:32.9]} 18... dxc5 {[%clk 0:02:20.9]} 19. Nd2 {[%clk 0:01:33.2]}
19... Bf5 {[%clk 0:02:16.3]} 20. Nc4 {[%clk 0:01:08.5]} 20... Nxc4 {[%clk
0:02:09]} 21. bxc4 {[%clk 0:01:09.4]} 21... Qd6 {[%clk 0:02:08.8]} 22. Qd2
{[%clk 0:01:08]} 22... Re7 {[%clk 0:02:00.2]} 23. Rfe1 {[%clk 0:01:07.7]} 23...
Rae8 {[%clk 0:02:00.6]} 24. f4 {[%clk 0:00:40.8]} 24... h5 {[%clk 0:01:50.4]}
25. h4 {[%clk 0:00:35.6]} 25... Be4 {[%clk 0:01:37.7]} 26. Bxe4 {[%clk
0:00:22.9]} 26... Rxe4 {[%clk 0:01:38.6]} 27. Rxe4 {[%clk 0:00:22]} 27... Rxe4
{[%clk 0:01:38.5]} 28. Re1 {[%clk 0:00:22.6]} 28... Qe7 {[%clk 0:01:31.5]} 29.
Kf2 {[%clk 0:00:16.8]} 29... Rxe1 {[%clk 0:01:26.7]} 30. Qxe1 {[%clk 0:00:17.7]}
30... Qxe1+ {[%clk 0:01:25.6]} 31. Kxe1 {[%clk 0:00:18.6]} 31... Kh7 {[%clk
0:01:22.5]} 32. Ke2 {[%clk 0:00:17.3]} 32... Kg6 {[%clk 0:01:18.7]} 33. Kf3
{[%clk 0:00:15]} 33... Kf5 {[%clk 0:01:18.2]} 34. a3 {[%clk 0:00:14.6]} 34... a4
{[%clk 0:01:16.7]} 35. Kf2 {[%clk 0:00:11.6]} 35... Ke4 {[%clk 0:01:13.5]} 36.
Ke2 {[%clk 0:00:11.6]} 36... f5 {[%clk 0:01:13.6]} 37. Kd2 {[%clk 0:00:03]}
37... Kf3 {[%clk 0:01:12.1]} 38. Kd3 {[%clk 0:00:03]} 38... Kxg3 {[%clk
0:01:11.6]} 39. Ke3 {[%clk 0:00:03.5]} 39... Kxh4 {[%clk 0:01:09.5]} 40. Kf3
{[%clk 0:00:04]} 40... g5 {[%clk 0:01:09.7]} 41. fxg5 {[%clk 0:00:03.3]} 41...
Kxg5 {[%clk 0:01:10.6]} 42. Kg3 {[%clk 0:00:03.2]} 42... f4+ {[%clk 0:01:10.7]}
43. Kf3 {[%clk 0:00:03.5]} 43... Kf5 {[%clk 0:01:11.6]} 0-1

[Event "*** Titled Tuesday Blitz"]
[Site "Chess.com"]
[Date "2021.03.09"]
[Round "10"]
[White "Funo09"]
[Black "JimmmyZhang"]
[Result "0-1"]
[WhiteElo "2731"]
[BlackElo "2497"]
[TimeControl "180+1"]
[EndTime "11:58:41 PST"]
[Termination "JimmmyZhang won by checkmate"]

1. e4 {[%clk 0:03:00.9]} 1... e5 {[%clk 0:02:58.8]} 2. Nf3 {[%clk 0:03:00.3]}
2... Nc6 {[%clk 0:02:55.5]} 3. Bb5 {[%clk 0:03:00.9]} 3... Nge7 {[%clk
0:02:54.4]} 4. O-O {[%clk 0:03:00.3]} 4... g6 {[%clk 0:02:53.1]} 5. c3 {[%clk
0:03:00.7]} 5... Bg7 {[%clk 0:02:52.9]} 6. d4 {[%clk 0:02:59.1]} 6... exd4
{[%clk 0:02:52.7]} 7. cxd4 {[%clk 0:03:00]} 7... d5 {[%clk 0:02:52.9]} 8. e5
{[%clk 0:02:57.4]} 8... O-O {[%clk 0:02:51.6]} 9. h3 {[%clk 0:02:57.5]} 9... a6
{[%clk 0:02:47.9]} 10. Ba4 {[%clk 0:02:56.6]} 10... b5 {[%clk 0:02:46.5]} 11.
Bc2 {[%clk 0:02:50.5]} 11... Bf5 {[%clk 0:02:23]} 12. Nc3 {[%clk 0:02:43.4]}
12... Bxc2 {[%clk 0:02:16.5]} 13. Qxc2 {[%clk 0:02:44.3]} 13... f6 {[%clk
0:02:17.2]} 14. exf6 {[%clk 0:02:05]} 14... Bxf6 {[%clk 0:02:16.6]} 15. Bh6
{[%clk 0:02:03.1]} 15... Re8 {[%clk 0:02:13.6]} 16. Rfe1 {[%clk 0:01:50.8]}
16... Qd6 {[%clk 0:02:08.6]} 17. Qd2 {[%clk 0:01:44.3]} 17... Nf5 {[%clk
0:02:05]} 18. Bf4 {[%clk 0:01:44.2]} 18... Qd7 {[%clk 0:02:01.8]} 19. Ne5 {[%clk
0:01:34.5]} 19... Bxe5 {[%clk 0:01:52.4]} 20. dxe5 {[%clk 0:01:35.4]} 20... Ncd4
{[%clk 0:01:52.3]} 21. b4 {[%clk 0:01:04.2]} 21... c6 {[%clk 0:01:45]} 22. Rad1
{[%clk 0:00:52.8]} 22... a5 {[%clk 0:01:44.3]} 23. bxa5 {[%clk 0:00:46.9]} 23...
Nf3+ {[%clk 0:01:33.9]} 24. gxf3 {[%clk 0:00:45.5]} 24... Nh4 {[%clk 0:01:34.5]}
25. Kf1 {[%clk 0:00:03.3]} 25... Qxh3+ {[%clk 0:01:33.6]} 26. Ke2 {[%clk
0:00:04.2]} 26... Qxf3+ {[%clk 0:01:33.7]} 27. Kf1 {[%clk 0:00:05.1]} 27... Rf8
{[%clk 0:01:11.5]} 28. Be3 {[%clk 0:00:05.2]} 28... Qg2+ {[%clk 0:01:02.1]} 29.
Ke2 {[%clk 0:00:05.4]} 29... Qg4+ {[%clk 0:01:02.7]} 30. Kd3 {[%clk 0:00:01.3]}
30... Qf5+ {[%clk 0:00:51.1]} 31. Ke2 {[%clk 0:00:01.1]} 31... Qg4+ {[%clk
0:00:51.5]} 32. Kf1 {[%clk 0:00:01.5]} 32... Nf3 {[%clk 0:00:48.7]} 33. Qd3
{[%clk 0:00:01.2]} 33... Nh2# {[%clk 0:00:46.9]} 0-1